lending/lending_fUSD_20250430
["ID","MTS","AMOUNT","RATE_DAILY","PERIOD"]
[359396351,1745986244013,-350.43,0.00044955,2]
[359396352,1745986244022,-44183.4479567,0.0004496,4]
[359396353,1745986244031,-203.25,0.0004497,120]
[359396354,1745986244041,-150.5,0.0004497,120]
[359396355,1745986244052,-150.5,0.0004497,120]
[359396356,1745986244064,-565.24,0.0004497,31]
[359396357,1745986244074,-150.5,0.0004498,120]
[359396358,1745986244083,-150.5,0.0004498,120]
[359396359,1745986244094,-150.5,0.0004498,120]
[359396360,1745986244104,-815.11009096,0.00044985,120]
[359396361,1745986244115,-565.24,0.00044988,31]
[359396362,1745986244125,-5717.6851304,0.00044989,2]
[359396363,1745986244135,-565.24,0.00044989,31]
[359396364,1745986244144,-150.5,0.0004499,120]
[359396365,1745986244154,-150.5,0.0004499,120]
[359396366,1745986244164,-150.5,0.0004499,120]
[359396367,1745986244173,-500.0,0.00044998,2]
[359396368,1745986244183,-500.0,0.00044998,31]
[359396369,1745986244195,-500.0,0.00044998,31]
[359396370,1745986244204,-500.0,0.00044998,31]
[359396371,1745986244214,-500.0,0.00044998,31]
[359396372,1745986244224,-565.24,0.00044998,31]
[359396373,1745986244235,-94918.6831561,0.00044999,2]
[359396374,1745986244244,-712.3143,0.00044999,2]
[359396375,1745986244254,-7183.6261344,0.00044999,2]
[359396376,1745986244263,-17225.0687374,0.00044999,2]
[359396377,1745986244273,-700.0,0.00044999,120]
[359396378,1745986244283,-700.0,0.00044999,120]
[359396379,1745986244294,-700.0,0.00044999,120]
[359396380,1745986244304,-700.0,0.00044999,120]
[359396381,1745986244314,-700.0,0.00044999,120]
[359396382,1745986244324,-700.0,0.00044999,120]
[359396383,1745986244334,-700.0,0.00044999,120]
[359396384,1745986244344,-700.0,0.00044999,120]
[359396385,1745986244354,-700.0,0.00044999,120]
[359396386,1745986244364,-792.62503826,0.00044999,120]
[359396387,1745986244374,-502.82161738,0.00044999,2]
[359396388,1745986244386,-566.06224373,0.00044999,120]
[359396389,1745986244397,-307.77283027,0.00044999,31]
[359396390,1745986244409,-500.0,0.00044999,31]
[359396391,1745986244420,-500.0,0.00044999,31]
[359396392,1745986244433,-500.0,0.00044999,31]
[359396393,1745986244443,-500.0,0.00044999,31]
[359396394,1745986244452,-500.0,0.00044999,31]
[359396395,1745986244462,-500.0,0.00044999,31]
[359396396,1745986244472,-500.0,0.00044999,31]
[359396397,1745986244481,-351.01717636,0.00044999,31]
[359396398,1745986244492,-500.0,0.00044999,31]
[359396399,1745986244502,-500.0,0.00044999,31]
[359396400,1745986244513,-500.0,0.00044999,31]
[359396401,1745986244523,-500.0,0.00044999,31]
[359396402,1745986244532,-500.0,0.00044999,31]
[359396403,1745986244543,-500.0,0.00044999,31]
[359396404,1745986244553,-500.0,0.00044999,31]
[359396405,1745986244562,-500.0,0.00044999,31]
[359396406,1745986244572,-999.0,0.00044999,120]
[359396407,1745986244582,-500.0,0.00044999,31]
[359396408,1745986244592,-500.0,0.00044999,31]
[359396409,1745986244602,-500.0,0.00044999,31]
[359396410,1745986244611,-500.0,0.00044999,31]
[359396411,1745986244621,-500.0,0.00044999,31]
[359396412,1745986244631,-500.0,0.00044999,31]
[359396413,1745986244641,-500.0,0.00044999,31]
[359396414,1745986244651,-500.0,0.00044999,31]
[359396415,1745986244661,-162.86045543,0.00044999,3]
[359396416,1745986244671,-565.24,0.00044999,31]
[359396417,1745986244682,-565.24,0.00044999,31]
[359396418,1745986244691,-565.24,0.00044999,31]
[359396419,1745986244701,-565.24,0.00044999,31]
[359396420,1745986244711,-565.24,0.00044999,31]
[359396421,1745986244721,-565.24,0.00044999,31]
[359396422,1745986244732,-565.24,0.00044999,31]
[359396423,1745986244741,-374441.01787553,0.00045,10]
[359396424,1745986244759,-2365.72090362,0.00045,10]
[359396425,1745986244772,-2408.20502436,0.00045,10]
[359396426,1745986244813,-2229.31,0.00045,10]
[359396427,1745986245801,-271631.04242107,0.00045,10]
[359396428,1745986245875,-160.0,0.00038,2]
[359396429,1745986245885,-169.11443697,0.00038168,2]
[359396430,1745986245896,-6.09246898,0.00038168,2]
[359396431,1745986245905,-395.62935987,0.00045,10]
[359396455,1745986246566,-160.0,0.00027397,7]
[359396457,1745986246576,-246.0,0.00032877,2]
[359396459,1745986246586,-266.0,0.00038356,5]
[359396461,1745986246595,-104187.90580269,0.00045,10]
[359396463,1745986246607,-6177.18706618,0.00045,10]
[359396467,1745986246639,-336.68177411,0.00045,10]
[359396470,1745986246650,-26769.08249561,0.00045,10]
[359396472,1745986246665,-3899.6,0.00045,10]
[359396476,1745986246690,-992.0,0.00045,10]
[359396478,1745986246703,-1078.61063024,0.00045,10]
[359396480,1745986246714,-36329.84128276,0.00045,10]
[359396483,1745986246729,-4327.4,0.00045,10]
[359396486,1745986246755,-6368.65773734,0.00045,10]
[359396488,1745986246767,-1781.2649874,0.00045,10]
[359396537,1745986247492,-664.996,0.00045,10]
[359396538,1745986247541,-1418.08976366,0.00045,10]
[359396539,1745986322192,200.0,0.00021889,117]
[359396540,1745986322295,200.0,0.00023687,117]
[359396541,1745986322347,200.0,0.00029522,117]
[359396542,1745986442157,200.0,0.00024078,117]
[359396543,1745986442244,200.0,0.00024682,117]
[359396544,1745986442310,200.0,0.00027976,117]
[359396545,1745986562016,200.0,0.00024078,117]
[359396546,1745986562399,200.0,0.00025096,117]
[359396547,1745986562465,200.0,0.00028677,117]
[359396548,1745986682045,200.0,0.00024078,117]
[359396549,1745986682135,200.0,0.00024643,117]
[359396550,1745986682210,200.0,0.00027876,117]
[359396551,1745986803877,200.0,0.00024078,117]
[359396552,1745986804074,200.0,0.00024643,117]
[359396553,1745986804165,200.0,0.00027806,117]
[359396554,1745986921516,200.0,0.00024078,117]
[359396555,1745986921593,200.0,0.00024643,117]
[359396556,1745986921646,200.0,0.00027499,117]
[359396557,1745987042146,200.0,0.00024078,117]
[359396558,1745987042205,200.0,0.00024643,117]
[359396559,1745987042272,200.0,0.00027406,117]
[359396560,1745987179359,702.52439078,0.000209,30]
[359396561,1745987212566,-217.92193857,0.00019345,2]
[359396562,1745987216366,-356.64181375,0.00019345,2]
[359396563,1745987224596,-256.61711393,0.00019345,2]
[359396564,1745987231442,-206.94635516,0.00019345,2]
[359396570,1745987234351,-300.0,0.00019345,2]
[359396582,1745987238171,-462.72,0.00019345,2]
[359396583,1745987241055,-291.27216806,0.00019345,2]
[359396585,1745987248199,-252.61519864,0.00019345,2]
[359396587,1745987253141,-299.45634724,0.00019345,2]
[359396588,1745987257505,-156.34813292,0.00019345,2]
[359396589,1745987265435,-157.05497622,0.00019344,2]
[359396590,1745987273150,-142.94502378,0.00019344,2]
[359396591,1745987273170,-297.71384848,0.00019345,2]
[359396592,1745987283736,-277.0,0.00019344,2]
[359396593,1745987283759,-23.0,0.00019345,2]
[359396594,1745987285147,1225.56561914,0.00025,60]
[359396595,1745987295747,-262.84441073,0.00019345,2]
[359396596,1745987302346,-409.86625006,0.00019345,2]
[359396597,1745987305460,-153.0641577,0.00019345,2]
[359396598,1745987309455,-370.55,0.00019345,2]
[359396599,1745987317838,1322.40666844,0.00028,60]
[359396600,1745987320039,-200.0,0.00019345,2]
[359396603,1745987327470,-167.20766283,0.00019345,2]
[359396604,1745987332995,-189.57488143,0.00019345,2]
[359396605,1745987335730,-386.23230439,0.00019345,2]
[359396606,1745987344711,-320.55,0.00019345,2]
[359396615,1745987355322,-295.72,0.00019345,2]
[359396616,1745987355778,150.0,0.00019248,2]
[359396655,1745987362507,-154.28,0.00019345,2]
[359396664,1745987405410,236.97661461,0.00028,120]
[359396677,1745987432162,-730.67886632,0.00019344,2]
[359396678,1745987432281,-350.0,0.00019344,2]
[359396679,1745987432293,-119.32113368,0.00019344,2]
[359396680,1745987432304,-300.0,0.00019344,2]
[359396681,1745987432314,-70.06398568,0.00019345,2]
[359396682,1745987432404,-403.75424352,0.00019345,2]
[359396683,1745987432416,-300.0,0.00019345,2]
[359396684,1745987432427,-339.44976473,0.00019345,2]
[359396792,1745987438282,-15873.29604928,0.00019345,2]
[359396793,1745987438291,-200.0,0.00019466,2]
[359396794,1745987438301,-250.0,0.00019588,2]
[359396795,1745987438311,-200.0,0.00019588,2]
[359396796,1745987438323,-200.0,0.00019809,2]
[359396797,1745987438334,-239.04617385,0.0001983,2]
[359396798,1745987438343,-298.13710449,0.000199,2]
[359396799,1745987438352,-571.17732568,0.000199,2]
[359396800,1745987438361,-2455.8532,0.000199,2]
[359396801,1745987438371,-13426.0932824,0.000199,2]
[359396802,1745987438381,-1294.81558035,0.000199,2]
[359396803,1745987438391,-816.90180991,0.000199,2]
[359396804,1745987438400,-3206.0,0.00019973,2]
[359396805,1745987438409,-500.0,0.00019973,2]
[359396806,1745987438419,-500.0,0.00019973,2]
[359396807,1745987438428,-160.05643078,0.00019973,2]
[359396808,1745987438438,-442.08442003,0.00019999,2]
[359396810,1745987438447,-500.0,0.00019999,2]
[359396812,1745987438456,-500.0,0.00019999,2]
[359396813,1745987438465,-162.86045543,0.00019999,2]
[359396814,1745987438474,-161.7623092,0.00019999,2]
[359396815,1745987438484,-156.99649068,0.00019999,2]
[359396816,1745987438493,-183.73211428,0.0002,2]
[359396818,1745987438502,-75575.43184519,0.0002,2]
[359396820,1745987438513,-5202401.01661883,0.0002,2]
[359396824,1745987438544,-3229.23732841,0.0002,2]
[359396864,1745987440322,-596.16506968,0.0002,2]
[359396865,1745987440334,-271631.04242107,0.0002,2]
[359396866,1745987440487,-1633.00973577,0.0002,2]
[359396867,1745987440543,-736.38536813,0.0002,2]
[359396868,1745987440554,-5983.74678684,0.0002,2]
[359396869,1745987440565,-1254.79806746,0.0002,2]
[359396873,1745987441009,-276.6296521,0.0002,2]
[359396874,1745987441227,-350.86795932,0.0002,2]
[359396879,1745987443196,-1502.93222497,0.0002,2]
[359396880,1745987443207,-261.26829006,0.0002,2]
[359396881,1745987443295,-1130.9150135,0.0002,2]
[359396882,1745987443353,-658.37860201,0.0002,2]
[359396883,1745987443475,-1384.28247185,0.0002,2]
[359396884,1745987443520,-7800.0,0.0002,2]
[359396896,1745987446359,-7349.88311069,0.0002,2]
[359397089,1745987597390,250.0,0.00017,2]
[359397090,1745987598469,300.0,0.00019,2]
[359397091,1745987729162,-200.0,0.00019316,2]
[359397092,1745987735864,-256.00608287,0.00019316,2]
[359397093,1745987742889,-254.44391713,0.00019316,2]
[359397094,1745987749815,-285.81480427,0.00019315,2]
[359397095,1745987753464,-14.18519573,0.00019315,2]
[359397096,1745987753487,-243.83639527,0.00019316,2]
[359397097,1745987754201,510.45,0.00019218,2]
[359397098,1745987757728,-250.0,0.00019316,2]
[359397099,1745987767556,-248.09194992,0.00019316,2]
[359397100,1745987769631,793.836395,0.00019219,2]
[359397101,1745987773575,-168.96440878,0.00019316,2]
[359397102,1745987781651,-228.00681,0.00019316,2]
[359397103,1745987782137,248.09195,0.00019219,2]
[359397104,1745987789831,-175.35829013,0.00019316,2]
[359397105,1745987793241,-291.41809587,0.00019316,2]
[359397106,1745987794729,168.964409,0.00019219,2]
[359397107,1745987798686,-152.01398665,0.00019316,2]
[359397108,1745987805569,-466.49,0.00019316,2]
[359397109,1745987814694,-376.37137481,0.00019316,2]
[359397110,1745987821591,-191.2694,0.00019316,2]
[359397111,1745987828440,-184.71062023,0.00019316,2]
[359397112,1745987831101,2468.08,0.00019105,2]
[359397113,1745987832922,-156.20860496,0.00019316,2]
[359397114,1745987838070,-539.67618744,0.00019316,2]
[359397115,1745987842772,-150.0,0.00019316,2]
[359397116,1745987847238,-314.08469051,0.00019316,2]
[359397117,1745987853534,-237.67912205,0.00019316,2]
[359397118,1745987865722,-170.55,0.00019316,2]
[359397119,1745987869848,-1168.59686663,0.00019316,2]
[359397120,1745987887686,388.2413357,0.0003013,120]
[359397121,1745987901382,-202.24479639,0.00019316,2]
[359397122,1745987905128,-369.43908333,0.00019316,2]
[359397123,1745987910620,-184.58000945,0.00019316,2]
[359397124,1745987918835,-549.36118791,0.00019316,2]
[359397125,1745987921819,160.3,0.00019115,2]
[359397126,1745987922029,160.3,0.00019131,2]
[359397127,1745987922135,-418.25925773,0.00019316,2]
[359397128,1745987922230,160.3,0.00019146,2]
[359397129,1745987922482,160.3,0.00019162,2]
[359397130,1745987922717,160.3,0.00019178,2]
[359397131,1745987923055,160.3,0.00019194,2]
[359397132,1745987923475,160.3,0.0001921,2]
[359397133,1745987925882,-171.12773371,0.00019316,2]
[359397134,1745987928563,-329.95,0.00019316,2]
[359397135,1745987929455,1206.18,0.00019115,2]
[359397136,1745987942689,-166.09,0.00019316,2]
[359397137,1745987947382,-163.86,0.00019316,2]
[359397138,1745987950652,-177.95,0.00019316,2]
[359397139,1745987954761,-152.0,0.00019316,2]
[359397140,1745987958104,-478.3184178,0.00019316,2]
[359397141,1745987962520,-370.95,0.00019316,2]
[359397142,1745987964136,185.35,0.00019061,2]
[359397143,1745987964549,185.35,0.00028592,120]
[359397144,1745987966981,-177.519776,0.00019316,2]
[359397145,1745987972181,-350.0,0.00019316,2]
[359397146,1745987975419,2813.04,0.00019151,2]
[359397147,1745987977423,-379.55191135,0.00019316,2]
[359397148,1745987981280,-228.79,0.00019316,2]
[359397149,1745987985187,-180.01,0.00019316,2]
[359397150,1745987990954,-442.89630797,0.00019316,2]
[359397151,1745987995058,-234.90963049,0.00019316,2]
[359397152,1745988000020,-150.0,0.00019316,2]
[359397153,1745988010592,-399.71401388,0.00019316,2]
[359397154,1745988015914,-151.15247333,0.00019316,2]
[359397155,1745988021484,-250.00988087,0.00019316,2]
[359397156,1745988024540,-232.12565862,0.00019316,2]
[359397157,1745988029780,-264.98170447,0.00019316,2]
[359397158,1745988034034,-148.35135345,0.00019316,2]
[359397159,1745988101331,152.88422,0.0002595,36]
[359397160,1745988101416,152.88422,0.000272,39]
[359397161,1745988101482,152.88422,0.0002845,42]
[359397162,1745988101578,152.88422,0.000297,44]
[359397163,1745988157176,709.9132172,0.00019291,2]
[359397164,1745988220889,582.49,0.00019178,2]
[359397165,1745988336306,222.75,0.00018886,2]
[359397166,1745988351095,-169.04,0.00019316,2]
[359397167,1745988353726,4000.0,0.00018863,2]
[359397168,1745988353981,-38.85857353,0.00019316,2]
[359397169,1745988354002,-152.24300464,0.00019316,2]
[359397170,1745988358623,-178.19877731,0.00019316,2]
[359397171,1745988365274,-152.74180912,0.00019316,2]
[359397172,1745988370043,1000.0,0.00018837,2]
[359397173,1745988372320,-151.0,0.00019316,2]
[359397174,1745988377766,-151.0,0.00019316,2]
[359397175,1745988377815,1.0,0.00018844,2]
[359397176,1745988377837,190.2,0.00018844,2]
[359397177,1745988383233,-151.0,0.00019316,2]
[359397178,1745988407018,152.88422,0.0002527,35]
[359397179,1745988408629,250.0,0.00018833,2]
[359397180,1745988426284,3289.5,0.00018833,2]
[359397181,1745988428368,-151.0,0.00019316,2]
[359397186,1745988434742,-151.0,0.00019316,2]
[359397188,1745988435583,95.94945882,0.00019316,2]
[359397189,1745988436720,200.0,0.00018833,2]
[359397226,1745988565048,3069.48,0.00018886,2]
[359397435,1745988572513,150.0,0.00018872,2]
[359397895,1745988585717,2122.92,0.00016976,2]
[359397896,1745988586141,2122.92,0.0001924,2]
[359397897,1745988586476,-65.50139596,0.00019316,2]
[359397903,1745988632294,-236.74,0.00019436,2]
[359397904,1745988632304,-166.51797304,0.00019597,2]
[359397905,1745988632313,-200.0,0.00019599,2]
[359397906,1745988632323,-167.41,0.00019636,2]
[359397907,1745988632331,-569.41,0.00019684,2]
[359397908,1745988632341,-111.92202696,0.0001971,2]
[359397909,1745988632475,-459.25529872,0.0001971,2]
[359397910,1745988632484,-500.0,0.00019773,2]
[359397911,1745988632494,-371.72725504,0.00019773,2]
[359398097,1745988638412,-124.61833798,0.00019773,2]
[359398098,1745988638421,-160.05643078,0.00019773,2]
[359398099,1745988638431,-500.0,0.00019773,2]
[359398100,1745988638439,-161.22201182,0.00019786,2]
[359398101,1745988638454,-138.77798818,0.00019786,2]
[359398102,1745988638615,-300.0,0.00019786,2]
[359398103,1745988638624,-1200.0,0.00019787,2]
[359398104,1745988638634,-9999.99,0.00019788,2]
[359398105,1745988638643,-999.99,0.00019788,2]
[359398106,1745988638653,-9999.99,0.00019788,2]
[359398107,1745988638663,-9641.29,0.00019788,2]
[359398108,1745988638672,-150.99,0.00019788,2]
[359398109,1745988638681,-150.99,0.00019788,2]
[359398110,1745988638690,-2455.8532,0.00019788,2]
[359398111,1745988638700,-709.9132172,0.0001979,2]
[359398112,1745988638709,-442.08442003,0.00019798,2]
[359398113,1745988638718,-3450.107,0.00019799,2]
[359398115,1745988638728,-180.573,0.00019799,2]
[359398116,1745988638738,-29999.99,0.00019799,2]
[359398118,1745988638747,-19999.99,0.00019799,2]
[359398120,1745988638757,-6758.99,0.00019799,2]
[359398122,1745988638766,-6949.26,0.00019799,2]
[359398124,1745988638776,-68914.8201,0.000198,2]
[359398127,1745988638785,-14186.46702784,0.0001981,2]
[359398129,1745988638795,-161.7623092,0.00019872,2]
[359398130,1745988638805,-156.99649068,0.00019872,2]
[359398131,1745988638814,-1000.0,0.00019873,2]
[359398132,1745988638824,-1000.0,0.00019873,2]
[359398133,1745988638833,-1000.0,0.00019873,2]
[359398134,1745988638842,-1000.0,0.00019873,2]
[359398135,1745988638851,-1000.0,0.00019873,2]
[359398136,1745988638860,-1000.0,0.00019873,2]
[359398137,1745988638870,-1000.0,0.00019873,2]
[359398138,1745988638879,-639.0,0.00019873,2]
[359398139,1745988638888,-500.0,0.00019873,2]
[359398140,1745988638898,-500.0,0.00019873,2]
[359398141,1745988638908,-500.0,0.00019873,2]
[359398142,1745988638917,-522.44047793,0.00019873,2]
[359398143,1745988638927,-500.0,0.00019873,2]
[359398144,1745988638936,-500.0,0.00019873,2]
[359398145,1745988638946,-301.84461807,0.00019873,2]
[359398146,1745988638955,-605.49057199,0.00019873,2]
[359398147,1745988638964,-502.0928181,0.00019873,2]
[359398148,1745988638974,-500.0,0.00019873,2]
[359398149,1745988638983,-500.23006761,0.00019873,2]
[359398150,1745988638993,-507.05303443,0.00019873,2]
[359398151,1745988639002,-150.38961376,0.00019873,2]
[359398152,1745988639011,-500.0,0.00019873,2]
[359398153,1745988639021,-500.0,0.00019873,2]
[359398154,1745988639030,-501.90027515,0.00019873,2]
[359398155,1745988639040,-2690.72126964,0.000199,2]
[359398156,1745988639049,-317.4189035,0.000199,2]
[359398157,1745988639058,-13426.0932824,0.000199,2]
[359398158,1745988639068,-298.13710449,0.000199,2]
[359398159,1745988639077,-222.75,0.00019935,2]
[359398160,1745988639088,-3206.0,0.00019973,2]
[359398161,1745988639098,-280.17388614,0.00019973,2]
[359398162,1745988639107,-500.0,0.00019973,2]
[359398163,1745988639116,-506.1625356,0.00019973,2]
[359398164,1745988639125,-500.0,0.00019973,2]
[359398165,1745988639135,-500.8941895,0.00019973,2]
[359398166,1745988639145,-501.88070055,0.00019973,2]
[359398167,1745988639154,-247.60385362,0.00019973,2]
[359398168,1745988639163,-3494.9176906,0.00019986,2]
[359398169,1745988639173,-2269.0643025,0.00019986,2]
[359398170,1745988639182,-441.6951113,0.00019986,2]
[359398171,1745988639192,-214.3927026,0.00019986,2]
[359398173,1745988639204,-500.0,0.00019999,2]
[359398174,1745988639214,-1509.11739645,0.00019999,2]
[359398176,1745988639223,-162.86045543,0.00019999,2]
[359398177,1745988639232,-183.73211428,0.0002,2]
[359398178,1745988639242,-75575.43184519,0.0002,2]
[359398179,1745988639251,-5033576.51828714,0.0002,2]
[359398180,1745988639262,-2722.59741403,0.0002,2]
[359398181,1745988639272,-5999.9407416,0.0002,2]
[359398377,1745988641281,-273.98857344,0.000199,2]
[359398380,1745988641292,-542.91323647,0.000199,2]
[359398382,1745988641302,-1249.06693933,0.0002,2]
[359398412,1745988643522,-1395.0,0.0002,2]
[359398415,1745988646627,-625.4800275,0.0002,2]
[359398475,1745988761269,345.0,0.00030137,120]
[359398476,1745988968927,-1200.0,0.00019899,2]
[359398477,1745988968949,-300.0,0.00019899,2]
[359398478,1745988968972,-300.0,0.00019899,2]
[359398479,1745988968994,-300.0,0.00019899,2]
[359398480,1745988969016,-250.0,0.000199,2]
[359398481,1745988969038,-14749.71993135,0.000199,2]
[359398482,1745988969061,-20861.28006865,0.000199,2]
[359398484,1745989212312,2000.0,0.000301,120]
[359398485,1745989226986,2000.0,0.000301,120]
[359398486,1745989306371,153.57,0.00019304,2]
[359398487,1745989333827,201.65,0.00019304,2]
[359398488,1745989408348,250.0,0.00017,2]
[359398489,1745989409427,300.0,0.00019,2]
[359398491,1745989606965,1968.22,0.0001776,2]
[359398842,1745989690511,196.0,0.00019,2]
[359398843,1745989692351,196.0,0.00019,2]
[359398904,1745989754937,196.0,0.000193,2]
[359398934,1745989831518,-1084.54,0.00019426,2]
[359398935,1745989831528,-801.395,0.00019426,2]
[359398936,1745989831575,-2217.015,0.00019426,2]
[359398937,1745989831586,-200.0,0.00019552,2]
[359398938,1745989831596,-250.0,0.00019604,2]
[359398939,1745989831605,-1534.74,0.00019755,2]
[359398940,1745989831616,-3648.43,0.00019855,2]
[359398941,1745989831626,-1200.0,0.00019885,2]
[359398942,1745989831635,-235.0,0.00019885,2]
[359398943,1745989831645,-2357.17269434,0.00019886,2]
[359398944,1745989831659,-2475.883476,0.00019886,2]
[359398945,1745989831694,-5284.65392293,0.00019886,2]
[359398946,1745989831708,-2652.33964639,0.00019886,2]
[359398947,1745989831719,-200.0,0.00019888,2]
[359398948,1745989831729,-290.87298924,0.00019899,2]
[359398949,1745989831739,-9736.90266525,0.000199,2]
[359398950,1745989831752,-468.26544494,0.000199,2]
[359398951,1745989831860,-630.24830038,0.000199,2]
[359398959,1745989837513,-571.17732568,0.00019886,2]
[359398960,1745989837523,-1502.92365097,0.000199,2]
[359398961,1745989837729,-656.67,0.000199,2]
[359398962,1745989837741,-1594.10902335,0.000199,2]
[359398970,1745989839668,-3255.66817225,0.000199,2]
[359398971,1745989839682,-574.72339879,0.000199,2]
[359398972,1745989839783,-3622.03466094,0.000199,2]
[359398973,1745989839840,-758.79780336,0.000199,2]
[359398974,1745989840007,-844.6309636,0.000199,2]
[359398975,1745989840226,-310.29495447,0.000199,2]
[359398990,1745989842777,-494.15689218,0.000198,2]
[359398996,1745989845469,-712.682,0.000198,2]
[359399084,1745989891166,250.0,0.00019687,7]
[359399085,1745989900802,194.87,0.0003,30]
[359399086,1745990080337,774.0,0.0003,120]
[359399087,1745990115421,1446.0,0.0003,30]
[359399088,1745990270633,1439.14,0.0001891,2]
[359399089,1745990401675,779.8144517,0.00019225,2]
[359399090,1745990409144,3000.0,0.0003,30]
[359399091,1745990428596,3000.0,0.0003,30]
[359399092,1745990437779,3000.0,0.0003,30]
[359399093,1745990445546,3000.0,0.0003,30]
[359399094,1745990452247,3000.0,0.0003,30]
[359399095,1745990459442,3000.0,0.0003,30]
[359399096,1745990465945,3000.0,0.0003,30]
[359399097,1745990469905,178.2,0.00018891,2]
[359399098,1745990472735,200.0,0.00018889,2]
[359399099,1745990472774,3000.0,0.0003,30]
[359399100,1745990483388,2390.29,0.0003,30]
[359399101,1745990535403,1003.0,0.0003,31]
[359399102,1745990597961,1000.0,0.00018933,2]
[359399103,1745990607631,250.0,0.00019249,2]
[359399106,1745990780010,2199.47,0.00016928,2]
[359399107,1745990780214,2199.47,0.00019192,2]
[359399108,1745990815150,2269.56,0.00018842,2]
[359399112,1745990835183,200.0,0.00018842,2]
[359399120,1745990884858,1786.25,0.00018839,2]
[359399121,1745990892191,756.5140402,0.0001901,2]
[359399122,1745990931582,870.2646,0.00019245,2]
[359399123,1745990937244,250.0,0.00018817,7]
[359399315,1745991031725,-300.0,0.00019344,2]
[359399316,1745991031735,-300.0,0.00019344,2]
[359399317,1745991031744,-1200.0,0.00019344,2]
[359399318,1745991031753,-300.0,0.00019344,2]
[359399319,1745991031762,-250.0,0.00019344,2]
[359399320,1745991031772,-200.0,0.00019345,2]
[359399321,1745991031781,-21.79212204,0.00019345,2]
[359399322,1745991031793,-4463.60175122,0.00019345,2]
[359399323,1745991031803,-2848.76756245,0.00019345,2]
[359399324,1745991031815,-387.13222533,0.00019345,2]
[359399325,1745991031841,-626.0537296,0.00019345,2]
[359399326,1745991031853,-11666.8892958,0.00019345,2]
[359399327,1745991031864,-200.0,0.00019442,2]
[359399328,1745991031874,-178.94,0.00019458,2]
[359399329,1745991031883,-534.48,0.00019464,2]
[359399330,1745991031892,-249.19968241,0.000196,2]
[359399331,1745991031901,-756.5140402,0.00019703,2]
[359399332,1745991031913,-398.0,0.0001971,2]
[359399333,1745991031923,-67663.94134629,0.00019711,2]
[359399334,1745991031935,-918.01753244,0.00019711,2]
[359399335,1745991031947,-332.86122127,0.00019711,2]
[359399336,1745991031957,-512.86666619,0.00019712,2]
[359399337,1745991031968,-58.31065949,0.00019712,2]
[359399338,1745991031977,-2543.68934051,0.00019772,2]
[359399339,1745991031989,-54855.33565918,0.00019772,2]
[359399340,1745991032005,-15114.40728658,0.00019772,2]
[359399341,1745991032016,-1895.58556209,0.00019772,2]
[359399447,1745991037718,-442.08442003,0.0001971,2]
[359399448,1745991037727,-2837.64858443,0.00019772,2]
[359399449,1745991037738,-1448.97499596,0.00019772,2]
[359399450,1745991037782,-366.12785766,0.00019772,2]
[359399451,1745991037841,-1529.9557274,0.00019772,2]
[359399452,1745991037852,-39853.25107304,0.00019772,2]
[359399453,1745991037861,-500.0,0.00019773,2]
[359399454,1745991037870,-500.0,0.00019773,2]
[359399455,1745991037879,-13979.0091641,0.00019773,2]